fUST/lending_fUST_20251011
["ID","MTS","AMOUNT","RATE_DAILY","PERIOD"]
[390682643,1760118642997,-1196.421727,0.00027934,30]
[390682645,1760118643007,-1196.421727,0.00027934,30]
[390682647,1760118643016,-1196.421727,0.00027934,30]
[390682649,1760118643026,-151.0,0.00027934,30]
[390682651,1760118643036,-151.0,0.00027934,30]
[390682653,1760118643045,-270.9432,0.00027945,2]
[390682655,1760118643055,-780.0,0.00027946,2]
[390682657,1760118643064,-168.0,0.0002795,2]
[390682659,1760118643074,-18362.4126416,0.00027955,2]
[390682661,1760118643084,-157.0,0.00027965,3]
[390682663,1760118643094,-158.55802683,0.00027965,3]
[390682664,1760118643103,-329.0,0.00027965,3]
[390682665,1760118643113,-329.0,0.00027965,3]
[390682666,1760118643123,-329.0,0.00027965,3]
[390682667,1760118643138,-329.0,0.00027965,3]
[390682668,1760118643148,-329.0,0.00027965,3]
[390682669,1760118643158,-329.0,0.00027965,3]
[390682671,1760118643168,-329.0,0.00027965,3]
[390682673,1760118643178,-329.0,0.00027965,3]
[390682674,1760118643191,-329.0,0.00027965,3]
[390682676,1760118643201,-329.0,0.00027965,3]
[390682678,1760118643211,-329.0,0.00027965,3]
[390682679,1760118643223,-329.0,0.00027965,3]
[390682680,1760118643233,-329.0,0.00027965,3]
[390682681,1760118643243,-402.89972253,0.00027965,3]
[390682682,1760118643252,-162.0,0.00027965,3]
[390682683,1760118643262,-162.0,0.00027965,3]
[390682684,1760118643271,-180.15202945,0.00027965,3]
[390682685,1760118643281,-172.0,0.00027965,3]
[390682686,1760118643290,-173.95832966,0.00027965,3]
[390682687,1760118643300,-175.0,0.00027965,3]
[390682688,1760118643309,-175.0,0.00027965,3]
[390682689,1760118643319,-175.0,0.00027965,3]
[390682690,1760118643328,-174.8657094,0.00027965,3]
[390682691,1760118643338,-152.0,0.00027965,3]
[390682692,1760118643347,-152.0,0.00027965,3]
[390682693,1760118643357,-152.0,0.00027965,3]
[390682694,1760118643367,-152.0,0.00027965,3]
[390682695,1760118643376,-152.0,0.00027965,3]
[390682696,1760118643388,-152.0,0.00027965,3]
[390682697,1760118643398,-152.0,0.00027965,3]
[390682698,1760118643407,-152.0,0.00027965,3]
[390682699,1760118643416,-152.0,0.00027965,3]
[390682700,1760118643426,-152.0,0.00027965,3]
[390682701,1760118643435,-152.0,0.00027965,3]
[390682702,1760118643444,-152.0,0.00027965,3]
[390682703,1760118643457,-152.0,0.00027965,3]
[390682704,1760118643471,-152.0,0.00027965,3]
[390682705,1760118643480,-152.0,0.00027965,3]
[390682706,1760118643490,-152.0,0.00027965,3]
[390682707,1760118643499,-152.0,0.00027965,3]
[390682708,1760118643509,-152.0,0.00027965,3]
[390682709,1760118643518,-152.0,0.00027965,3]
[390682710,1760118643527,-152.0,0.00027965,3]
[390682711,1760118643537,-215.33827402,0.00027965,3]
[390682712,1760118643546,-151.0,0.00027965,30]
[390682713,1760118643556,-168.0,0.00027968,2]
[390682714,1760118643566,-1000.0,0.00027973,5]
[390682715,1760118643575,-1000.0,0.00028,2]
[390682716,1760118643584,-780.0,0.00028001,2]
[390682717,1760118643594,-500.0,0.0002804,5]
[390682718,1760118643603,-500.0,0.0002804,5]
[390682719,1760118643612,-500.0,0.0002804,5]
[390682720,1760118643621,-500.0,0.0002804,20]
[390682721,1760118643630,-378.3000009,0.0002804,5]
[390682722,1760118643640,-270.9432,0.00028045,2]
[390682723,1760118643650,-780.0,0.00028055,2]
[390682724,1760118643659,-1500.0,0.00028096,5]
[390682725,1760118643669,-787.0,0.0002811,2]
[390682726,1760118643679,-3500.0,0.0002816,5]
[390682728,1760118643689,-1580.34548532,0.00028168,2]
[390682730,1760118643699,-500.0,0.00028218,7]
[390682732,1760118643709,-1500.0,0.00028246,5]
[390682734,1760118643718,-1500.0,0.00028246,5]
[390682736,1760118643728,-10937.23603663,0.000284,2]
[390682738,1760118643737,-1163.506465,0.0002848,5]
[390682740,1760118643747,-151.0,0.0002849,10]
[390682742,1760118643756,-151.0,0.0002849,10]
[390682744,1760118643765,-32661.4007732,0.0002849,2]
[390682746,1760118643781,-4063.4245101,0.0002849,2]
[390682748,1760118643791,-297.8284942,0.00028493,30]
[390682750,1760118643801,-409.7560672,0.00028493,30]
[390682752,1760118643811,-162.8446322,0.00028493,30]
[390682754,1760118643820,-1428.921969,0.000285,7]
[390682757,1760118643831,-58592.67098877,0.000285,7]
[390682759,1760118643843,-4013.51542786,0.000285,7]
[390682761,1760118643855,-822.42279838,0.000285,7]
[390682763,1760118643867,-471.54538709,0.000285,7]
[390682765,1760118643879,-861.97211392,0.000285,7]
[390682768,1760118643896,-4720.4,0.000285,7]
[390682791,1760118644110,-152.484242,0.00026,7]
[390682793,1760118644123,-25417.43620243,0.000285,7]
[390682795,1760118644135,-298.03512572,0.000285,7]
[390682797,1760118644155,-151.0,0.000285,30]
[390682799,1760118644169,-151.0,0.000285,30]
[390682801,1760118644179,-153.026028,0.000285,30]
[390682803,1760118644190,-151.0,0.000285,30]
[390682805,1760118644200,-151.0,0.000285,30]
[390682807,1760118644210,-151.0,0.000285,30]
[390682809,1760118644219,-151.0,0.000285,30]
[390682811,1760118644229,-151.638751,0.000285,30]
[390682813,1760118644239,-151.0,0.000285,30]
[390682815,1760118644248,-151.0,0.000285,30]
[390682817,1760118644257,-151.0,0.000285,30]
[390682819,1760118644266,-151.0,0.000285,30]
[390682821,1760118644275,-151.0,0.000285,30]
[390682823,1760118644284,-151.0,0.000285,30]
[390682825,1760118644294,-151.0,0.000285,30]
[390682827,1760118644303,-151.0,0.000285,30]
[390682829,1760118644313,-151.0,0.000285,30]
[390682831,1760118644322,-151.0,0.000285,30]
[390682833,1760118644331,-151.0,0.000285,30]
[390682835,1760118644340,-1000.0,0.000285,5]
[390682837,1760118644349,-1000.0,0.000285,5]
[390682839,1760118644359,-151.0,0.000285,30]
[390682841,1760118644368,-522.35299868,0.000285,10]
[390682843,1760118644377,-151.0,0.000285,30]
[390682845,1760118644389,-151.0,0.000285,30]
[390682847,1760118644398,-253.799,0.000285,30]
[390682849,1760118644407,-151.0,0.000285,30]
[390682851,1760118644416,-151.0,0.000285,30]
[390682854,1760118644426,-171.151384,0.000285,30]
[390682856,1760118644437,-171.151384,0.000285,30]
[390682858,1760118644446,-171.151384,0.000285,30]
[390682860,1760118644455,-171.151384,0.000285,30]
[390682862,1760118644464,-294.235924,0.000285,30]
[390682864,1760118644473,-294.235924,0.000285,30]
[390682866,1760118644482,-294.235924,0.000285,30]
[390682868,1760118644491,-294.235924,0.000285,30]
[390682870,1760118644500,-151.0,0.000285,30]
[390682871,1760118644509,-151.0,0.000285,30]
[390682873,1760118644518,-224.564696,0.000285,30]
[390682875,1760118644528,-151.0,0.000285,15]
[390682877,1760118644536,-197.296677,0.000285,30]
[390682879,1760118644545,-18362.4126416,0.00028506,2]
[390682881,1760118644554,-980.0,0.00028516,2]
[390682883,1760118644563,-2159.0,0.00028516,2]
[390682885,1760118644572,-630.0,0.00028516,2]
[390682887,1760118644581,-1500.0,0.00028521,5]
[390682889,1760118644590,-151.0,0.00028545,10]
[390682891,1760118644600,-500.0,0.0002859,5]
[390682893,1760118644609,-500.0,0.0002859,20]
[390682895,1760118644618,-500.0,0.0002859,5]
[390682897,1760118644628,-500.0,0.0002859,5]
[390682899,1760118644638,-500.0,0.0002859,20]
[390682901,1760118644647,-500.0,0.0002859,5]
[390682903,1760118644656,-500.0,0.0002859,5]
[390682905,1760118644667,-500.0,0.0002859,20]
[390682907,1760118644676,-500.0,0.0002859,5]
[390682909,1760118644685,-500.0,0.0002859,5]
[390682911,1760118644694,-500.0,0.0002859,20]
[390682913,1760118644703,-500.0,0.0002859,5]
[390682915,1760118644712,-151.0,0.000286,10]
[390682917,1760118644721,-1000.0,0.000286,4]
[390682919,1760118644730,-303.77702373,0.00028644,5]
[390682921,1760118644739,-246.55682446,0.00028654,10]
[390682923,1760118644748,-189.6925741,0.00028699,30]
[390682925,1760118644757,-446.3028652,0.00028699,30]
[390682927,1760118644767,-297.8284942,0.00028699,30]
[390682929,1760118644776,-189.6925741,0.00028699,30]
[390682931,1760118644785,-153.0,0.00028699,30]
[390682933,1760118644794,-4000.0,0.00028708,5]
[390682935,1760118644803,-18529.89168476,0.00028767,30]
[390682937,1760118644812,-1000.0,0.00028767,30]
[390682939,1760118644822,-151.0,0.00028767,30]
[390682941,1760118644831,-151.0,0.00028767,30]
[390682943,1760118644840,-1196.421727,0.00028767,30]
[390682945,1760118644849,-1196.421727,0.00028767,30]
[390682947,1760118644858,-1196.421727,0.00028767,30]
[390682949,1760118644867,-1196.421727,0.00028767,30]
[390682964,1760118645020,-2007.0,0.00028767,2]
[390682966,1760118645030,-2000.0,0.00028794,5]
[390682968,1760118645041,-1501.46186656,0.00028794,5]
[390682970,1760118645050,-151.0,0.00028903,30]
[390682972,1760118645059,-151.0,0.00028903,30]
[390682974,1760118645069,-151.0,0.00028903,30]
[390682977,1760118645078,-151.0,0.00028903,30]
[390682978,1760118645087,-500.0,0.00028911,60]
[390682981,1760118645096,-941.94,0.00028911,60]
[390682983,1760118645106,-14370.57240986,0.00028913,2]
[390683000,1760118645370,-168.79638016,0.000196,2]
[390683001,1760118645379,-500.0,0.00027281,2]
[390683002,1760118645391,-500.0,0.00027281,2]
[390683003,1760118645400,-500.0,0.00027281,2]
[390683004,1760118645410,-1831.20361984,0.00028493,2]
[390683057,1760118646022,-500.0,0.00027281,2]
[390683059,1760118646032,-500.0,0.00027281,2]
[390683061,1760118646042,-500.0,0.00027281,2]
[390683063,1760118646051,-1553.85899865,0.00028493,2]
[390687277,1760118859899,1482.77,0.00028767,120]
[390687307,1760119505197,167.590633,0.00012875,2]
[390687312,1760119530402,1365.87217699,0.00028767,120]
[390687338,1760119715471,305.53624068,0.00017,10]
[390687558,1760119838134,-171.6930453,0.000169,2]
[390687559,1760119838143,-151.0,0.00017,2]
[390687560,1760119838153,-200.0,0.00017,2]
[390687561,1760119838162,-649.33,0.0001897,2]
[390687562,1760119838172,-329.16227782,0.0002055,2]
[390687563,1760119838184,-381.01467688,0.00020695,2]
[390687568,1760119838219,-917.65532312,0.00020695,2]
[390687570,1760119838229,-160.0,0.00020698,2]
[390687572,1760119838239,-298.03512572,0.000207,2]
[390687574,1760119838249,-1000.0,0.00020725,2]
[390687576,1760119838259,-684.74006922,0.00020725,2]
[390687580,1760119840224,-315.25993078,0.00020725,2]
[390687581,1760119840234,-160.0,0.00021959,2]
[390687582,1760119840243,-1375.10398463,0.00021967,2]
[390687583,1760119840252,-42.13353093,0.00022418,2]
[390687584,1760119840263,-257.86646907,0.00022418,2]
[390687585,1760119840272,-1948.0,0.00022419,2]
[390687586,1760119840281,-411.0,0.00022832,2]
[390687587,1760119840290,-68.15828075,0.00022893,2]
[390687898,1760119843324,-208.93458725,0.00022893,2]
[390687900,1760119843333,-160.0,0.00023,2]
[390687902,1760119843343,-298.27930461,0.00023287,2]
[390687904,1760119843354,-201.72069539,0.00023287,2]
[390687906,1760119843364,-980.0,0.00023407,2]
[390687908,1760119843373,-2159.0,0.00023407,2]
[390687910,1760119843383,-630.0,0.00023407,2]
[390687913,1760119843392,-666.0,0.00023915,2]
[390687915,1760119843402,-1239.77930461,0.00024,2]
[390687917,1760119843412,-2672.299571,0.00024,2]
[390687919,1760119843424,-2087.92112339,0.00024,2]
[390687921,1760119843433,-2002.0788766,0.00024144,2]
[390687939,1760119843731,-595.2611234,0.00024144,2]
[390687940,1760119843741,-105.61159684,0.0002435,2]
[390688059,1760119846256,-314.38840316,0.0002435,2]
[390688060,1760119846266,-380.0,0.00024658,2]
[390688061,1760119846276,-3246.67,0.00025869,2]
[390688062,1760119846285,-500.0,0.00026026,2]
[390688063,1760119846295,-500.0,0.00026027,4]
[390688064,1760119846304,-168.79638016,0.00026307,2]
[390688065,1760119846314,-980.0,0.00026407,2]
[390688066,1760119846323,-2159.0,0.00026407,2]
[390688067,1760119846333,-630.0,0.00026407,2]
[390688068,1760119846343,-587.0,0.0002645,2]
[390688069,1760119846352,-156.49410531,0.00026596,7]
[390688070,1760119846362,-468.966,0.00026663,14]
[390688071,1760119846371,-500.0,0.00027122,2]
[390688072,1760119846381,-168.79638016,0.00027275,2]
[390688073,1760119846391,-300.0,0.00027397,2]
[390688074,1760119846402,-300.0,0.00027397,2]
[390688075,1760119846412,-300.0,0.00027397,2]
[390688076,1760119846422,-300.0,0.00027397,2]
[390688077,1760119846432,-300.0,0.00027397,2]
[390688078,1760119846441,-300.0,0.00027397,2]
[390688079,1760119846452,-300.0,0.00027397,2]
[390688080,1760119846463,-345.91834033,0.00027397,2]
[390688081,1760119846480,-500.0,0.00027397,60]
[390688082,1760119846489,-500.0,0.00027397,60]
[390688083,1760119846498,-586.60738582,0.00027397,60]
[390688084,1760119846509,-863.45,0.00027397,60]
[390688085,1760119846518,-863.45,0.00027397,60]
[390688086,1760119846527,-863.45,0.00027397,60]
[390688088,1760119846536,-863.45,0.00027397,60]
[390688089,1760119846548,-863.45,0.00027397,60]
[390688090,1760119846557,-863.45,0.00027397,60]
[390688091,1760119846566,-863.45,0.00027397,60]
[390688092,1760119846575,-863.45,0.00027397,60]
[390688093,1760119846585,-863.45,0.00027397,60]
[390688094,1760119846593,-863.45,0.00027397,60]
[390688095,1760119846602,-863.45,0.00027397,60]
[390688096,1760119846612,-863.45,0.00027397,60]
[390688097,1760119846621,-863.45,0.00027397,60]
[390688098,1760119846630,-863.45,0.00027397,60]
[390688099,1760119846638,-863.45,0.00027397,60]
[390688100,1760119846648,-863.45,0.00027397,60]
[390688101,1760119846657,-863.45,0.00027397,60]
[390688102,1760119846667,-643.78544546,0.00027397,60]
[390688103,1760119846712,-219.66455454,0.00027397,60]
[390688104,1760119846721,-863.45,0.00027397,60]
[390688105,1760119846731,-863.45,0.00027397,60]
[390688106,1760119846740,-863.45,0.00027397,60]
[390688107,1760119846749,-863.45,0.00027397,60]
[390688108,1760119846759,-863.45,0.00027397,60]
[390688109,1760119846768,-863.55636747,0.00027397,60]
[390688110,1760119846778,-500.0,0.00027397,60]
[390688111,1760119846788,-500.0,0.00027397,60]
[390688112,1760119846797,-500.0,0.00027397,2]
[390688113,1760119846807,-500.0,0.00027397,2]
[390688114,1760119846816,-160.47107984,0.00027397,2]
[390688115,1760119846826,-330.54241822,0.0002747,2]
[390688116,1760119846835,-10572.96241187,0.0002747,2]
[390688117,1760119846844,-3896.01,0.00027593,2]
[390688118,1760119846853,-189.6925741,0.00027877,30]
[390688119,1760119846862,-153.0,0.00027877,30]
[390688120,1760119846872,-189.6925741,0.00027877,30]
[390688121,1760119846881,-153.0,0.00027877,30]
[390688122,1760119846891,-189.6925741,0.00027877,30]
[390688123,1760119846901,-153.0,0.00027877,30]
[390688124,1760119846910,-162.8446322,0.00027877,30]
[390688125,1760119846919,-189.6925741,0.00027877,30]
[390688126,1760119846929,-297.8284942,0.00027877,30]
[390688127,1760119846938,-153.0,0.00027877,30]
[390688128,1760119846948,-189.6925741,0.00027877,30]
[390688130,1760119846958,-162.8446322,0.00027877,30]
[390688132,1760119846968,-297.8284942,0.00027877,30]
[390688134,1760119846977,-1000.0,0.00028,2]
[390688135,1760119846986,-500.0,0.0002804,5]
[390688137,1760119846995,-500.0,0.0002804,5]
[390688139,1760119847005,-500.0,0.0002804,20]
[390688141,1760119847014,-500.0,0.0002804,5]
[390688143,1760119847024,-500.0,0.0002804,5]
[390688145,1760119847033,-500.0,0.0002804,5]
[390688147,1760119847043,-500.0,0.0002804,20]
[390688149,1760119847052,-1580.33244586,0.00028168,2]
[390688151,1760119847062,-168.79638016,0.00028244,2]
[390688153,1760119847071,-1163.506465,0.000285,5]
[390688155,1760119847080,-168.0,0.0002857,2]
[390688157,1760119847089,-307.3145591,0.00028579,30]
[390688159,1760119847098,-500.0,0.0002859,20]
[390688161,1760119847107,-168.0,0.00028612,2]
[390688163,1760119847116,-455.0,0.00028655,10]
[390688165,1760119847125,-151.0,0.00028655,10]
[390688167,1760119847135,-189.6925741,0.00028699,30]
[390688169,1760119847144,-162.8446322,0.00028699,30]
[390688171,1760119847153,-297.8284942,0.00028699,30]
[390688173,1760119847162,-297.8284942,0.00028699,30]
[390688175,1760119847172,-162.8446322,0.00028699,30]
[390688177,1760119847182,-189.6925741,0.00028699,30]
[390688179,1760119847192,-189.6925741,0.00028699,30]
[390688181,1760119847204,-297.8284942,0.00028699,30]
[390688183,1760119847214,-162.8446322,0.00028699,30]
[390688184,1760119847224,-352.4139414,0.00028699,30]
[390688185,1760119847234,-385.2573306,0.00028699,30]
[390688187,1760119847245,-150.73608669,0.0002871,10]
[390688189,1760119847257,-304.26391331,0.0002871,10]
[390688191,1760119847268,-823.0,0.0002873,2]
[390688193,1760119847282,-455.0,0.00028765,10]
[390688195,1760119847293,-500.0,0.00028767,30]
[390688197,1760119847303,-611.44481761,0.00028767,6]
[390688199,1760119847314,-200.02693205,0.00028767,30]
[390688201,1760119847324,-500.0,0.0002879,20]
[390688202,1760119847334,-192.93927548,0.00028816,2]
[390688203,1760119847344,-455.0,0.00028819,10]
[390688204,1760119847355,-330.30398943,0.00028838,60]
[390688205,1760119847366,-151.09093099,0.00028873,2]
[390688206,1760119847377,-455.0,0.00028874,10]
[390688207,1760119847387,-151.09093099,0.00028882,2]
[390688208,1760119847396,-3736.60850326,0.0002889,2]
[390688209,1760119847406,-35340.85961061,0.00028891,2]
[390688210,1760119847418,-1719.49533249,0.00028891,2]
[390688668,1760120282969,300.0,0.0001557,2]
[390688669,1760120342378,300.0,0.0001557,2]
[390688670,1760120402323,300.0,0.0001557,2]
[390688675,1760120462402,300.0,0.0001557,2]
[390688676,1760120522214,300.0,0.0001557,2]
[390688677,1760120582508,300.0,0.0001557,2]
[390688678,1760120642402,300.0,0.0001557,2]
[390688679,1760120702071,300.0,0.0001557,2]
[390688686,1760120762880,300.0,0.0001557,2]
[390688701,1760120822730,300.0,0.0001557,2]
[390688709,1760120841711,850.98121,0.00013699,2]
[390688722,1760120882475,300.0,0.0001557,2]
[390688738,1760120942636,300.0,0.0001557,2]
[390688766,1760121002205,300.0,0.0001557,2]
[390688806,1760121036183,-160.0,0.00015571,2]
[390688807,1760121036195,-500.0,0.00015571,2]
[390688808,1760121036204,-500.0,0.00015571,2]
[390688809,1760121036214,-500.0,0.00015571,2]
[390688810,1760121036223,-310.0995801,0.00015571,2]
[390688811,1760121036298,-189.9004199,0.00015571,2]
[390688812,1760121036308,-218.95738776,0.00015571,2]
[390688813,1760121036317,-500.0,0.00015577,2]
[390688814,1760121036326,-500.0,0.00016397,2]
[390688815,1760121036336,-205.07645698,0.000168,2]
[390688816,1760121036345,-151.0,0.00017,2]
[390688817,1760121036354,-420.0,0.00017031,2]
[390688818,1760121036363,-151.0,0.00017137,2]
[390688819,1760121036373,-500.0,0.0001726,2]
[390688820,1760121036383,-151.0,0.00017275,2]
[390688821,1760121036392,-151.0,0.00017412,2]
[390688822,1760121036404,-151.0,0.0001755,2]
[390688823,1760121036413,-151.0,0.00017687,2]
[390688824,1760121036423,-151.0,0.00017825,2]
[390688825,1760121036432,-151.0,0.00017962,2]
[390688827,1760121036441,-151.0,0.000181,2]
[390688829,1760121036451,-500.0,0.00018168,2]
[390688831,1760121036460,-1041.66666667,0.0001848,2]
[390688832,1760121036469,-177.90835514,0.000185,2]
[390688833,1760121036478,-587.0,0.00018628,2]
[390688834,1760121036487,-177.90835514,0.000187,2]
[390688835,1760121036496,-177.90835514,0.000188,2]
[390688836,1760121036506,-500.0,0.00019124,2]
[390688837,1760121036515,-475.79,0.00019256,2]
[390688838,1760121036524,-298.03512572,0.00019825,2]
[390688839,1760121036534,-160.0,0.00019827,2]
[390688840,1760121036543,-160.0,0.00019827,2]
[390688841,1760121036552,-500.0,0.00020131,2]
[390688842,1760121036561,-850.98121,0.00020187,2]
[390688843,1760121036571,-823.0,0.00020376,2]
[390688844,1760121036579,-951.57,0.00021006,2]
[390688845,1760121036589,-500.0,0.0002119,2]
[390688846,1760121036598,-163.0,0.00022,2]
[390688847,1760121036607,-500.0,0.00022306,2]
[390688848,1760121036616,-261.11331394,0.00022521,7]
[390688849,1760121036628,-1427.36,0.00022757,2]
[390688850,1760121036637,-32923.70529432,0.000229,2]
[390688851,1760121036646,-500.0,0.00022973,2]
[390688852,1760121036654,-407.56425859,0.00022973,2]
[390688853,1760121036664,-500.0,0.00022973,2]
[390688854,1760121036673,-500.26426148,0.00022973,2]
[390688855,1760121036682,-6637.85,0.0002299,10]
[390688856,1760121036691,-5531.54,0.0002299,10]
[390688857,1760121036700,-4609.62,0.0002299,10]
[390688858,1760121036709,-3841.35,0.0002299,10]
[390688859,1760121036718,-160.0,0.00023,2]
[390688860,1760121036727,-6490.04156767,0.00023,3]
[390688861,1760121036736,-28021.88889168,0.00023,7]
[390688862,1760121036748,-1005.512651,0.00023,7]
[390688875,1760121038433,-1809.90404173,0.00023,7]
[390688918,1760121040480,-2349.3,0.00023,7]
[390689205,1760121043431,-14226.01927882,0.00023,7]
[390689208,1760121043446,-591.06570786,0.00023,7]
[390689214,1760121043499,-29847.72832994,0.00023,7]
[390689923,1760121579408,167.45,0.00028767,120]
[390689924,1760121864265,1000.0,0.0002876,120]
[390689982,1760122232896,-164.12088673,0.00016412,2]
[390689984,1760122232906,-164.12088673,0.000165,2]
[390689986,1760122232915,-300.0,0.00016512,2]
[390689988,1760122232925,-300.0,0.00016512,2]
[390689990,1760122232934,-300.0,0.00016512,2]
[390689992,1760122232944,-300.0,0.00016512,2]
[390689995,1760122232954,-300.0,0.00016512,2]
[390689997,1760122232963,-1200.0,0.00016512,2]
[390689998,1760122232973,-11696.34151918,0.00016513,2]
[390689999,1760122232983,-500.0,0.000166,2]
[390690000,1760122232993,-287.4424832,0.00016613,2]
[390690001,1760122233003,-150.0,0.000168,2]
[390690002,1760122233013,-684.38476317,0.000169,2]
[390690003,1760122233022,-151.0,0.00017,2]
[390690004,1760122233032,-196.58227828,0.00017123,3]
[390690005,1760122233042,-172.5,0.000174,2]
[390690007,1760122233053,-500.01577318,0.00017696,2]
[390690008,1760122233066,-166.40526305,0.00017898,2]
[390690009,1760122233076,-177.93,0.00017962,2]
[390690010,1760122233085,-50000.0,0.00017972,2]
[390690012,1760122233095,-195.0,0.00018,2]
[390690013,1760122233105,-500.0,0.00018,2]
[390690014,1760122233114,-300.0,0.00018044,2]
[390690015,1760122233124,-420.0,0.00018044,2]
[390690016,1760122233134,-420.0,0.00018044,2]
[390690017,1760122233143,-420.0,0.00018044,2]
[390690018,1760122233152,-151.0,0.000181,2]
[390690019,1760122233162,-1680.0,0.00018134,2]
[390690020,1760122233171,-666.0,0.00018431,2]
[390690021,1760122233181,-1041.66666667,0.000185,2]
[390690022,1760122233190,-217.5,0.000186,2]
[390690023,1760122233199,-1000.0,0.00018777,2]
[390690024,1760122233208,-531.38,0.00019095,2]
[390690025,1760122233218,-240.0,0.000192,2]
[390690026,1760122233227,-180.0,0.00019718,2]
[390690027,1760122233236,-587.0,0.00019718,2]
[390690028,1760122233245,-262.5,0.000198,2]
[390690029,1760122233255,-2351.0,0.00019915,2]
[390690030,1760122233264,-160.0,0.00020286,2]
[390690031,1760122233273,-285.0,0.000204,2]
[390690032,1760122233282,-166.40526305,0.00020741,2]
[390690033,1760122233291,-1062.76,0.00020831,2]
[390690034,1760122233300,-260.0,0.00020834,2]
[390690035,1760122233309,-157.47923835,0.00020948,2]
[390690036,1760122233318,-629.28703644,0.00020948,2]
[390690037,1760122233327,-160.0,0.00020952,2]
[390690038,1760122233337,-298.03512572,0.00020952,2]
[390690039,1760122233346,-307.5,0.00021,2]
[390690040,1760122233355,-360.0,0.00021382,2]
[390690041,1760122233364,-823.0,0.00021547,2]
[390690042,1760122233373,-330.0,0.000216,2]
[390690043,1760122233382,-2863.0,0.00021871,2]
[390690044,1760122233391,-460.0,0.0002193,2]
[390690045,1760122233399,-181.0,0.00022,2]
[390690046,1760122233409,-2379.9438599,0.00022078,2]
[390690047,1760122233418,-352.5,0.000222,2]
[390690048,1760122233428,-1463.58740782,0.00022466,2]
[390690049,1760122233437,-560.0,0.00022477,2]
[390690050,1760122233447,-1594.14,0.00022567,2]
[390690051,1760122233456,-1048.0021162,0.00022705,2]
[390690053,1760122233466,-238.80054356,0.000228,2]
[390690055,1760122233475,-9655.76,0.0002289,10]
[390690057,1760122233485,-5883.19445301,0.000229,2]
[390690059,1760122233501,-469.801177,0.000229,2]
[390690061,1760122233520,-23664.25857081,0.000229,2]
[390690062,1760122233529,-11586.92,0.0002297,10]
[390690063,1760122233539,-250.0,0.00022977,2]
[390690065,1760122233548,-7421.17,0.0002298,10]
[390690067,1760122233556,-164.91,0.0002298,3]
[390690069,1760122233566,-1186.75,0.0002299,3]
[390690071,1760122233575,-821.47,0.0002299,3]
[390690073,1760122233585,-410.73,0.0002299,3]
[390690075,1760122233595,-205.37,0.0002299,3]
[390690077,1760122233604,-616.13,0.0002299,3]
[390690079,1760122233613,-298.03512572,0.0002299,10]
[390690081,1760122233623,-243.26,0.0002299,3]
[390690083,1760122233632,-500.0,0.00022999,2]
[390690085,1760122233641,-500.0,0.00022999,2]
[390690087,1760122233650,-500.0,0.00022999,2]
[390690089,1760122233660,-500.0,0.00022999,2]
[390690091,1760122233669,-500.0,0.00022999,2]
[390690093,1760122233680,-500.0,0.00022999,2]
[390690095,1760122233690,-500.0,0.00022999,2]